[Event "9th Sharjah Cup Women 2018"]
[Site "Sharjah"]
[Date "2018.12.20"]
[Round "9"]
[White "Zozulia, Anna"]
[Black "Bauyrzhan, Arnash"]
[Result "1/2-1/2"]
[ECO "A22"]
[WhiteElo "2270"]
[BlackElo "1978"]
[Annotator "NA"]
[PlyCount "61"]
[EventDate "2018.12.14"]
[EventType "swiss"]
[EventCountry "UAE"]
[SourceTitle "playchess.com"]
[Source "ChessBase"]
[SourceQuality "1"]
[TimeControl "5400+30"]

{[%evp 11,58,49,54,34,21,55,26,22,32767,32767,32767,15,34,44,32767,32767,44,25,16,13,17,10,24,4,14,32767,79,32767,32767,75,32767,32767,94,78,113,19,47,-6,0,0,0,-14,0,0,0,-6,-8,0,0]} 1. c4 {[%emt 0:00:00]} e5 {[%emt 0:00:54]} 2. Nc3 {[%emt 0:00:04]} Nf6 {[%emt 0:00:22]} 3. e3 {[%emt 0:02:11]} d6 {[%emt 0:09:53]} 4. Nf3 {[%emt 0:03:25] A22: English Opening: 1...e5 2 Nc3 Nf6} g6 {[%emt 0:01:17]} 5. d4 {[%emt 0:09:03]} exd4 {[%emt 0:02:17]} (5... Qe7 6. g3 Bg7 7. Bg2 O-O 8. h3 c6 9. b3 e4 10. Nd2 d5 11. a4 {1-0 (23) Grischuk,A (2792)-Eljanov,P (2723) Dubai 2014}) 6. exd4 {[%emt 0:05:06]} Bg7 {[%emt 0:00:46]} 7. Qe2+ {[%emt 0:14:25]} Qe7 {[%emt 0:01:14]} 8. Qxe7+ {[%emt 0:00:34]} Kxe7 {[%emt 0:00:05]} 9. Bg5 {[%emt 0:00:40]} Re8 {[%emt 0:03:14]} 10. O-O-O {[%emt 0:02:09]} Kf8 {[%emt 0:00:18]} 11. h3 $146 {[%emt 0:01:56]} ({Predecessor:} 11. Bxf6 Bxf6 12. Nd5 {½-½ (27) Munoz Santana,D (1979)-Muslem,R Mallorca 2004}) 11... a5 {[%emt 0:10:29]} 12. Bd3 {[%emt 0:09:58]} Na6 {[%emt 0:01:29]} 13. a3 {[%emt 0:00:05]} Bd7 {[%emt 0:01:48]} 14. Kb1 {[%emt 0:08:28]} Bc6 {[%emt 0:03:59]} 15. Rhe1 {[%emt 0:13:33]} Bxf3 {[%emt 0:05:11]} 16. gxf3 {[%emt 0:00:04]} Rxe1 {[%emt 0:03:46]} 17. Rxe1 {[%emt 0:00:03]} Nh5 {[%emt 0:01:14]} 18. Nb5 {[%emt 0:01:34]} Re8 {[%emt 0:02:32]} 19. Rxe8+ {[%emt 0:03:47]} Kxe8 {[%emt 0:00:01] [#]} 20. Be4 $1 {[%emt 0:02:00]} d5 {[%emt 0:08:31]} 21. cxd5 {[%emt 0:00:03]} f5 {[%emt 0:07:40]} 22. Bd3 {[%emt 0:01:50]} f4 {[%emt 0:04:32]} 23. d6 {[%emt 0:04:19]} ({Better is} 23. h4 $16) 23... c6 {[%emt 0:01:38]} 24. d5 {[%emt 0:06:35]} Kd7 {[%emt 0:02:53]} 25. dxc6+ {[%emt 0:06:15]} bxc6 {[%emt 0:00:05]} 26. Nc7 {[%emt 0:01:45]} Nxc7 {[%emt 0:01:01]} 27. dxc7 {[%emt 0:00:03]} Kxc7 {[%emt 0:00:09]} 28. Be7 {[%emt 0:00:56]} Bd4 {[%emt 0:00:19]} 29. Bc4 {[%emt 0:00:29]} Nf6 $11 {[%emt 0:02:41]} 30. Kc2 {[%emt 0:00:58]} Kd7 {[%emt 0:00:47]} 31. Bxf6 {[%emt 0:01:49]} 1/2-1/2

[Event "9th Sharjah Cup Women 2018"]
[Site "Sharjah"]
[Date "2018.12.20"]
[Round "9"]
[White "Enkhtuul, Altan-Ulzii"]
[Black "Kejzar, Petra"]
[Result "1-0"]
[ECO "A46"]
[WhiteElo "2267"]
[BlackElo "2062"]
[Annotator "ChessBase"]
[PlyCount "139"]
[EventDate "2018.12.14"]
[EventType "swiss"]
[EventCountry "UAE"]
[SourceTitle "playchess.com"]
[Source "ChessBase"]
[SourceQuality "1"]
[TimeControl "5400+30"]

1. d4 {[%emt 0:00:00]} Nf6 {[%emt 0:00:00]} 2. Nf3 {[%emt 0:00:00]} e6 {[%emt 0:00:00]} 3. g3 {[%emt 0:00:00]} b5 {[%emt 0:00:03]} 4. Bg2 {[%emt 0:00:00]} Bb7 {[%emt 0:00:06]} 5. Bg5 {[%emt 0:00:08]} d5 {[%emt 0:00:25]} 6. O-O {[%emt 0:00:08]} Nbd7 {[%emt 0:00:10]} 7. c3 {[%emt 0:00:42]} Be7 {[%emt 0:00:45]} 8. Qb3 {[%emt 0:00:16]} a6 {[%emt 0:05:06]} 9. Bxf6 {[%emt 0:02:12]} Nxf6 {[%emt 0:01:44]} 10. a4 {[%emt 0:00:34]} O-O {[%emt 0:05:11]} 11. Nbd2 {[%emt 0:02:17]} Qd6 {[%emt 0:03:40]} 12. axb5 {[%emt 0:01:14]} axb5 {[%emt 0:00:20]} 13. Rxa8 {[%emt 0:00:18]} Rxa8 {[%emt 0:00:53]} 14. Qxb5 {[%emt 0:00:53]} Ba6 {[%emt 0:00:51]} 15. Qa4 {[%emt 0:03:16]} Rb8 {[%emt 0:00:59]} 16. Ra1 {[%emt 0:04:10]} Bxe2 {[%emt 0:01:17]} 17. b4 {[%emt 0:00:24]} Nd7 {[%emt 0:08:37]} 18. Qa7 {[%emt 0:06:00]} Qb6 {[%emt 0:02:25]} 19. Bf1 {[%emt 0:05:25]} Bxf1 {[%emt 0:01:34]} 20. Nxf1 {[%emt 0:00:43]} Bd6 {[%emt 0:09:31]} 21. Qa4 {[%emt 0:22:25]} Qb5 {[%emt 0:02:34]} 22. Qxb5 {[%emt 0:01:56]} Rxb5 {[%emt 0:00:02]} 23. Ne3 {[%emt 0:02:33]} Rb8 {[%emt 0:05:13]} 24. Kf1 {[%emt 0:01:20]} Nb6 {[%emt 0:02:42]} 25. Ke2 {[%emt 0:07:47]} Ra8 {[%emt 0:00:56]} 26. Ra5 {[%emt 0:00:29]} f6 {[%emt 0:10:37]} 27. Kd3 {[%emt 0:02:34]} c6 {[%emt 0:02:40]} 28. Nd2 {[%emt 0:06:45]} Kf7 {[%emt 0:02:57]} 29. Nb3 {[%emt 0:04:48]} Ke7 {[%emt 0:00:54]} 30. f4 {[%emt 0:04:34]} g6 {[%emt 0:03:16]} 31. Ng4 {[%emt 0:07:18]} h5 {[%emt 0:00:38]} 32. Ne3 {[%emt 0:00:25]} g5 {[%emt 0:07:05]} 33. Rxa8 {[%emt 0:03:10]} Nxa8 {[%emt 0:00:01]} 34. f5 {[%emt 0:00:57]} h4 {[%emt 0:03:03]} 35. gxh4 {[%emt 0:00:15]} gxh4 {[%emt 0:01:09]} 36. h3 {[%emt 0:00:59]} e5 {[%emt 0:01:34]} 37. Na5 {[%emt 0:06:39]} e4+ {[%emt 0:00:14]} 38. Ke2 {[%emt 0:00:25]} Kd7 {[%emt 0:01:29]} 39. b5 {[%emt 0:00:05]} Bf4 {[%emt 0:06:46]} 40. bxc6+ {[%emt 0:05:04]} Kd6 {[%emt 0:00:10]} 41. Nc2 {[%emt 0:00:05]} Nc7 {[%emt 0:00:36]} 42. Nb4 {[%emt 0:00:07]} Bc1 {[%emt 0:03:12]} 43. Nb7+ {[%emt 0:00:08]} Ke7 {[%emt 0:00:07]} 44. c4 {[%emt 0:00:51]} dxc4 {[%emt 0:01:04]} 45. Nc2 {[%emt 0:01:38]} Bf4 {[%emt 0:01:36]} 46. Na5 {[%emt 0:00:20]} c3 {[%emt 0:00:27]} 47. Nc4 {[%emt 0:00:32]} Nd5 {[%emt 0:01:08]} 48. Kf2 {[%emt 0:00:37]} Kd8 {[%emt 0:01:19]} 49. N4e3 {[%emt 0:00:32]} Bg3+ {[%emt 0:05:53]} 50. Kf1 {[%emt 0:00:15]} Nf4 {[%emt 0:00:24]} 51. Nd1 {[%emt 0:00:34]} Nxh3 {[%emt 0:00:14]} 52. Nxc3 {[%emt 0:00:03]} Ng5 {[%emt 0:00:12]} 53. Kg2 {[%emt 0:00:12]} Kc7 54. d5 {[%emt 0:00:25]} Be5 {[%emt 0:00:54]} 55. Nb5+ {[%emt 0:00:34]} Kb6 {[%emt 0:00:28]} 56. Nba3 {[%emt 0:00:32]} Kc5 {[%emt 0:01:45]} 57. Ne3 {[%emt 0:00:01]} Kd4 {[%emt 0:00:39]} 58. Nac2+ {[%emt 0:00:34]} Kc5 {[%emt 0:00:34]} 59. Ng4 {[%emt 0:00:26]} h3+ {[%emt 0:00:30]} 60. Kh1 {[%emt 0:00:05]} Kd6 61. Nxe5 {[%emt 0:00:17]} fxe5 {[%emt 0:00:51]} 62. f6 {[%emt 0:00:10]} Nf7 {[%emt 0:00:30]} 63. Ne3 {[%emt 0:00:04]} Kc7 {[%emt 0:00:47]} 64. Kh2 {[%emt 0:00:07]} Nd6 {[%emt 0:00:11]} 65. Kxh3 {[%emt 0:00:09]} Kd8 {[%emt 0:00:21]} 66. Kg4 {[%emt 0:00:12]} Ke8 {[%emt 0:00:04]} 67. Nf5 {[%emt 0:00:59]} Nf7 {[%emt 0:01:23]} 68. d6 {[%emt 0:00:48]} Kd8 {[%emt 0:00:20]} 69. Kg3 {[%emt 0:01:59]} Kc8 {[%emt 0:00:47]} 70. Ne7+ {[%emt 0:00:09]} 1-0

[Event "9th Sharjah Cup Women 2018"]
[Site "Sharjah"]
[Date "2018.12.20"]
[Round "9"]
[White "Drljevic, Ljilja"]
[Black "Nass, Sara"]
[Result "1-0"]
[ECO "A00"]
[WhiteElo "2208"]
[BlackElo "1840"]
[Annotator "ChessBase"]
[PlyCount "65"]
[EventDate "2018.12.14"]
[EventType "swiss"]
[EventCountry "UAE"]
[SourceTitle "playchess.com"]
[Source "ChessBase"]
[SourceQuality "1"]
[TimeControl "5400+30"]

1. g3 {[%emt 0:00:00]} e5 {[%emt 0:00:00]} 2. c4 {[%emt 0:00:00]} d6 {[%emt 0:00:20]} 3. Bg2 {[%emt 0:00:19]} g6 {[%emt 0:00:40]} 4. Nc3 {[%emt 0:01:37]} Bg7 {[%emt 0:00:33]} 5. d3 {[%emt 0:02:34]} Ne7 {[%emt 0:01:05]} 6. e4 {[%emt 0:16:24]} O-O {[%emt 0:03:11]} 7. Be3 {[%emt 0:02:21]} Nbc6 {[%emt 0:08:05]} 8. Qd2 {[%emt 0:03:37]} Nd4 {[%emt 0:03:10]} 9. h4 {[%emt 0:06:36]} h5 {[%emt 0:03:41]} 10. O-O-O {[%emt 0:01:56]} a6 {[%emt 0:01:40]} 11. f3 {[%emt 0:02:23]} b5 {[%emt 0:01:33]} 12. g4 {[%emt 0:02:01]} hxg4 {[%emt 0:01:36]} 13. h5 {[%emt 0:00:24]} gxh5 {[%emt 0:02:37]} 14. Bh6 {[%emt 0:07:00]} Ng6 {[%emt 0:05:34]} 15. Rxh5 {[%emt 0:02:25]} Nf4 {[%emt 0:01:53]} 16. Bxf4 {[%emt 0:05:19]} exf4 {[%emt 0:00:29]} 17. Qxf4 {[%emt 0:00:53]} Qf6 {[%emt 0:02:19]} 18. Qxf6 {[%emt 0:07:27]} Bxf6 {[%emt 0:00:09]} 19. Nd5 {[%emt 0:01:15]} Bd8 {[%emt 0:00:11]} 20. Ne3 {[%emt 0:08:08]} g3 {[%emt 0:05:24]} 21. Nh3 {[%emt 0:06:54]} Kg7 {[%emt 0:02:08]} 22. Rh1 {[%emt 0:02:20]} Rg8 {[%emt 0:06:57]} 23. Kd2 {[%emt 0:11:01]} Be6 {[%emt 0:01:55]} 24. Ng5 {[%emt 0:01:51]} Bxg5 {[%emt 0:01:38]} 25. Rxg5+ {[%emt 0:00:04]} Kf6 {[%emt 0:00:42]} 26. Rgh5 {[%emt 0:00:42]} Rab8 {[%emt 0:02:03]} 27. b3 {[%emt 0:00:27]} Rg5 {[%emt 0:02:13]} 28. Rh6+ {[%emt 0:00:54]} Ke7 {[%emt 0:00:10]} 29. f4 {[%emt 0:00:23]} Rgg8 {[%emt 0:05:09]} 30. f5 {[%emt 0:00:14]} Bd7 {[%emt 0:00:27]} 31. Nd5+ {[%emt 0:00:33]} Kd8 {[%emt 0:00:14]} 32. Nf6 {[%emt 0:00:52]} Rf8 {[%emt 0:00:27]} 33. Rh8 {[%emt 0:00:20]} 1-0

[Event "9th Sharjah Cup Women 2018"]
[Site "Sharjah"]
[Date "2018.12.20"]
[Round "9"]
[White "Abdulla, Khayala"]
[Black "Cornette, Deimante"]
[Result "1/2-1/2"]
[ECO "B22"]
[WhiteElo "2190"]
[BlackElo "2455"]
[Annotator "ChessBase"]
[PlyCount "96"]
[EventDate "2018.12.14"]
[EventType "swiss"]
[EventCountry "UAE"]
[SourceTitle "playchess.com"]
[Source "ChessBase"]
[SourceQuality "1"]
[TimeControl "5400+30"]

1. e4 {[%emt 0:00:00]} c5 {[%emt 0:00:00]} 2. c3 {[%emt 0:00:50]} Nf6 {[%emt 0:00:00]} 3. e5 {[%emt 0:00:21]} Nd5 {[%emt 0:00:06]} 4. Nf3 {[%emt 0:00:08]} Nc6 {[%emt 0:00:19]} 5. Bc4 {[%emt 0:00:23]} Nb6 {[%emt 0:00:40]} 6. Bb3 {[%emt 0:00:07]} c4 {[%emt 0:00:18]} 7. Bc2 {[%emt 0:00:02]} d6 {[%emt 0:00:12]} 8. exd6 {[%emt 0:02:28]} Qxd6 {[%emt 0:00:07]} 9. d4 {[%emt 0:07:09]} cxd3 {[%emt 0:01:37]} 10. Qxd3 {[%emt 0:00:54]} Qxd3 {[%emt 0:05:01]} 11. Bxd3 {[%emt 0:00:03]} e5 {[%emt 0:01:20]} 12. O-O {[%emt 0:01:51]} f6 {[%emt 0:00:20]} 13. a4 {[%emt 0:02:31]} a6 {[%emt 0:20:12]} 14. Nbd2 {[%emt 0:11:34]} Be6 {[%emt 0:01:34]} 15. a5 {[%emt 0:00:25]} Nd5 {[%emt 0:02:58]} 16. Nc4 {[%emt 0:05:32]} Rd8 {[%emt 0:01:24]} 17. Be2 {[%emt 0:04:15]} Bc5 {[%emt 0:06:07]} 18. Ne1 {[%emt 0:06:34]} O-O {[%emt 0:01:42]} 19. Nc2 {[%emt 0:01:40]} g5 {[%emt 0:06:49]} 20. g3 {[%emt 0:07:11]} Kg7 {[%emt 0:10:04]} 21. N2e3 {[%emt 0:06:07]} Nce7 {[%emt 0:02:37]} 22. Nxd5 {[%emt 0:02:54]} Nxd5 {[%emt 0:00:10]} 23. Re1 {[%emt 0:00:15]} Rh8 {[%emt 0:03:36]} 24. Bf1 {[%emt 0:05:54]} h5 {[%emt 0:04:25]} 25. Ne3 {[%emt 0:02:57]} h4 {[%emt 0:04:32]} 26. Bg2 {[%emt 0:02:26]} h3 {[%emt 0:08:43]} 27. Bxd5 {[%emt 0:12:05]} Bxd5 {[%emt 0:00:06]} 28. Nxd5 {[%emt 0:00:03]} Rxd5 {[%emt 0:00:07]} 29. Kf1 {[%emt 0:00:32]} Rd3 {[%emt 0:01:57]} 30. Ra4 {[%emt 0:04:00]} Rhd8 {[%emt 0:05:56]} 31. Rc4 {[%emt 0:00:09]} Ba7 {[%emt 0:00:17]} 32. Rc7+ {[%emt 0:01:03]} R8d7 {[%emt 0:00:17]} 33. Rxd7+ {[%emt 0:00:05]} Rxd7 {[%emt 0:00:03]} 34. Be3 {[%emt 0:04:19]} Bxe3 {[%emt 0:00:12]} 35. Rxe3 {[%emt 0:00:01]} Rd1+ {[%emt 0:00:15]} 36. Re1 {[%emt 0:00:30]} Rd2 {[%emt 0:03:58]} 37. Re2 {[%emt 0:00:02]} Rd5 {[%emt 0:00:13]} 38. b4 {[%emt 0:00:08]} g4 {[%emt 0:05:58]} 39. Ke1 {[%emt 0:04:14]} Kf7 {[%emt 0:00:47]} 40. Re4 {[%emt 0:00:54]} f5 {[%emt 0:00:16]} 41. Rc4 {[%emt 0:00:12]} Rd7 {[%emt 0:00:15]} 42. Ke2 {[%emt 0:01:38]} Ke6 {[%emt 0:00:28]} 43. Rc8 {[%emt 0:00:51]} Kf6 {[%emt 0:02:05]} 44. Rc5 {[%emt 0:02:08]} Ke6 {[%emt 0:00:10]} 45. Rc8 {[%emt 0:00:04]} Kd5 {[%emt 0:01:27]} 46. Rc5+ {[%emt 0:00:29]} Ke6 {[%emt 0:00:26]} 47. Rc8 {[%emt 0:00:04]} Kd5 {[%emt 0:00:06]} 48. Rc5+ {[%emt 0:00:04]} Ke6 {[%emt 0:00:04]} 1/2-1/2

[Event "9th Sharjah Cup Women 2018"]
[Site "Sharjah"]
[Date "2018.12.20"]
[Round "9"]
[White "Babayan, Armine"]
[Black "Greibrokk, Ingrid"]
[Result "1-0"]
[ECO "B07"]
[WhiteElo "2189"]
[BlackElo "1857"]
[Annotator "NA"]
[PlyCount "69"]
[EventDate "2018.12.14"]
[EventType "swiss"]
[EventCountry "UAE"]
[SourceTitle "playchess.com"]
[Source "ChessBase"]
[SourceQuality "1"]
[TimeControl "5400+30"]

1. e4 {[%emt 0:00:00]} d6 {[%emt 0:00:00]} 2. d4 {[%emt 0:00:00]} Nf6 {[%emt 0:00:00]} 3. Nc3 {[%emt 0:00:00]} g6 {[%emt 0:00:00]} 4. Be2 {[%emt 0:00:12]} Bg7 {[%emt 0:00:08]} 5. Be3 {[%emt 0:00:04]} O-O {[%emt 0:00:08]} 6. h4 {[%emt 0:00:43]} h5 {[%emt 0:05:56]} 7. f3 {[%emt 0:00:37] B07: Pirc Defence: Miscellaneous Systems} (7. Qd2 c6 8. O-O-O b5 9. e5 dxe5 10. dxe5 Qxd2+ 11. Rxd2 b4 12. Na4 Nd5 13. Bf3 Nxe3 14. fxe3 Bxe5 {1-0 (46) Deniz,U (1820)-Atanasov,V Sofia 2018}) 7... e5 {[%emt 0:04:16]} 8. d5 {[%emt 0:00:46]} c6 {[%emt 0:02:18]} 9. Qd2 {[%emt 0:11:55]} cxd5 $146 {[%emt 0:07:17]} ({Predecessor:} 9... c5 10. Nh3 a6 11. Bg5 Nbd7 12. g4 Qc7 13. Bh6 b5 14. Bxg7 Kxg7 15. gxh5 Nxh5 {0-1 (26) Wink,A-Teixeira,J Schleswig Holstein 1989}) 10. Nxd5 {[%emt 0:03:18]} Nxd5 {[%emt 0:00:26]} 11. Qxd5 {[%emt 0:00:23]} Bf6 {[%emt 0:00:46]} 12. O-O-O {[%emt 0:00:59]} Bxh4 {[%emt 0:05:04]} (12... Be6 $14 13. Qxb7 Nd7) 13. g4 {[%emt 0:02:12]} ({Weaker is} 13. Qxd6 Qxd6 14. Rxd6 Be7 $11) 13... hxg4 {[%emt 0:07:56]} 14. fxg4 {[%emt 0:01:20]} Bg5 {[%emt 0:01:06]} 15. Qd2 {[%emt 0:01:23]} Bxe3 {[%emt 0:01:13]} 16. Qxe3 {[%emt 0:00:07]} Qf6 {[%emt 0:00:04]} 17. Qh3 {[%emt 0:01:27]} Qg7 {[%emt 0:00:30]} 18. Rxd6 {[%emt 0:03:38]} Be6 {[%emt 0:04:48]} 19. Nf3 {[%emt 0:00:20]} Nc6 {[%emt 0:01:15]} 20. Ng5 {[%emt 0:03:00]} Nd4 {[%emt 0:02:11]} 21. Bd1 {[%emt 0:04:20]} Rfd8 {[%emt 0:01:09]} 22. Rxd8+ {[%emt 0:00:11]} Rxd8 {[%emt 0:00:06]} 23. c3 {[%emt 0:00:06]} Nc6 {[%emt 0:09:46]} 24. Qf1 {[%emt 0:05:08]} Rxd1+ {[%emt 0:08:41]} 25. Qxd1 {[%emt 0:00:33]} Qf6 {[%emt 0:00:59]} 26. Nxe6 {[%emt 0:00:31]} Qxe6 {[%emt 0:00:06]} 27. Kb1 $18 {[%emt 0:02:58]} Qc4 {[%emt 0:07:05]} 28. Qf3 {[%emt 0:00:11]} b5 {[%emt 0:03:13]} 29. b3 {[%emt 0:00:21]} Qe6 {[%emt 0:00:23]} 30. Qh3 {[%emt 0:00:13]} Kf8 {[%emt 0:00:29]} 31. Qh8+ {[%emt 0:00:29]} Ke7 {[%emt 0:00:07]} 32. g5 {[%emt 0:00:26]} b4 {[%emt 0:02:45]} 33. cxb4 {[%emt 0:00:08]} Nxb4 {[%emt 0:00:16]} 34. Rd1 {[%emt 0:02:22]} Qb6 {[%emt 0:00:24]} 35. Qc8 {[%emt 0:00:38]} 1-0

[Event "9th Sharjah Cup Women 2018"]
[Site "Sharjah"]
[Date "2018.12.20"]
[Round "9"]
[White "Patil, Mitali"]
[Black "Khezrian, Nooralzahra"]
[Result "1-0"]
[ECO "C21"]
[WhiteElo "2081"]
[BlackElo "1317"]
[Annotator "NA RC"]
[PlyCount "31"]
[EventDate "2018.12.14"]
[EventType "swiss"]
[EventCountry "UAE"]
[SourceTitle "playchess.com"]
[Source "ChessBase"]
[SourceQuality "1"]
[TimeControl "5400+30"]

1. e4 {[%emt 0:00:00]} e5 {[%emt 0:02:42]} 2. d4 {[%emt 0:00:00]} exd4 {[%emt 0:00:40]} 3. c3 {[%emt 0:00:01]} dxc3 {[%emt 0:03:52]} 4. Nxc3 {[%emt 0:00:01]} Bb4 {[%emt 0:03:14]} 5. Bc4 {[%emt 0:00:25]} Qe7 {[%emt 0:01:34]} 6. Qf3 {[%emt 0:03:44]} Nf6 {[%emt 0:05:13]} 7. Kf1 {[%emt 0:29:10]} Bxc3 {[%emt 0:12:45]} ({Black should try} 7... Nc6 8. Bg5 Ne5) 8. Qxc3 {[%emt 0:00:15]} Nc6 {[%emt 0:04:53]} 9. Bf4 {[%emt 0:03:08]} d6 {[%emt 0:02:33]} 10. Nf3 {[%emt 0:22:22]} O-O {[%emt 0:08:17]} 11. Bg5 $17 {[%emt 0:02:06]} Re8 {[%emt 0:08:29]} 12. Bf4 {[%emt 0:00:07]} Rf8 {[%emt 0:00:06]} 13. Bg5 {[%emt 0:00:02]} Re8 {[%emt 0:00:09]} 14. Bf4 {[%emt 0:00:04]} Rf8 {[%emt 0:00:03]} 15. Bg5 {[%emt 0:00:05]} Re8 {[%emt 0:00:05]} 16. Bf4 $1 {[%emt 0:00:04]} 1-0

[Event "9th Sharjah Cup Women 2018"]
[Site "Sharjah"]
[Date "2018.12.20"]
[Round "9"]
[White "Mezioud, Amina"]
[Black "Asatryan, Sona"]
[Result "1/2-1/2"]
[ECO "B10"]
[WhiteElo "2065"]
[BlackElo "2089"]
[Annotator "NA"]
[PlyCount "123"]
[EventDate "2018.12.14"]
[EventType "swiss"]
[EventCountry "UAE"]
[SourceTitle "playchess.com"]
[Source "ChessBase"]
[SourceQuality "1"]
[TimeControl "5400+30"]

1. e4 {[%emt 0:00:07]} c6 {[%emt 0:00:00]} 2. d3 {[%emt 0:01:45]} d5 {[%emt 0:00:00]} 3. Nd2 {[%emt 0:00:07]} e5 {[%emt 0:00:30]} 4. Ngf3 {[%emt 0:00:10]} Bd6 {[%emt 0:00:39]} 5. g3 {[%emt 0:00:17]} Nf6 {[%emt 0:00:53]} 6. Bg2 {[%emt 0:00:06]} O-O {[%emt 0:00:19]} 7. O-O {[%emt 0:00:30]} Be6 {[%emt 0:02:19]} 8. c3 {[%emt 0:01:48]} Nbd7 {[%emt 0:05:13] B10: Caro-Kann: 2 d3 and 2 c4} 9. Ng5 {[%emt 0:02:28]} (9. Re1 Re8 10. d4 Bg4 11. h3 Bxf3 12. Bxf3 Qc7 13. exd5 cxd5 14. Nf1 e4 15. Bg2 b5 16. Ne3 {1-0 (47) Moreira,C (1741)-Milde,L (1575) LSS email 2010}) 9... h6 {[%emt 0:05:48]} 10. Nxe6 {[%emt 0:00:38]} fxe6 {[%emt 0:00:04]} 11. d4 $146 {[%emt 0:02:11]} ({Predecessor:} 11. f4 b5 12. Qe2 a6 13. Nf3 Qc7 14. fxe5 Bxe5 15. d4 Bd6 16. e5 Bxe5 17. Nxe5 {1-0 (32) Radzhabov,R-Dovgalevskaya,O Kiev 2007}) 11... Qb6 {[%emt 0:08:36]} 12. dxe5 {[%emt 0:15:42]} Nxe5 {[%emt 0:05:54]} 13. Nb3 {[%emt 0:01:37]} Rae8 {[%emt 0:07:30]} 14. Be3 {[%emt 0:06:40]} Qc7 {[%emt 0:04:40]} 15. exd5 {[%emt 0:05:35]} exd5 {[%emt 0:03:15]} 16. Nd4 {[%emt 0:03:56]} Qd7 {[%emt 0:03:32]} 17. Nf3 {[%emt 0:04:22]} Nc4 {[%emt 0:04:01]} 18. Bc1 {[%emt 0:05:29]} Ne4 {[%emt 0:02:18]} 19. Qc2 {[%emt 0:01:02]} Qg4 {[%emt 0:06:28]} 20. Nd4 {[%emt 0:11:31]} Qh5 {[%emt 0:04:08]} 21. b3 {[%emt 0:09:48]} Ne5 {[%emt 0:01:12]} 22. h3 {[%emt 0:00:43]} c5 {[%emt 0:03:56]} 23. g4 $2 {[%emt 0:01:56]} (23. Qe2 Qf7 24. Nb5) 23... Nxg4 {[%emt 0:02:25]} 24. f4 {[%emt 0:01:58]} cxd4 {[%emt 0:02:14]} 25. hxg4 {[%emt 0:00:02]} Qxg4 {[%emt 0:00:28]} 26. cxd4 {[%emt 0:00:29]} Bxf4 {[%emt 0:02:47]} 27. Bxf4 {[%emt 0:01:39]} Rxf4 {[%emt 0:01:29]} 28. Rxf4 {[%emt 0:04:18]} Qxf4 {[%emt 0:00:04]} 29. Re1 {[%emt 0:00:18]} Rf8 $19 {[%emt 0:04:58]} 30. Qe2 {[%emt 0:03:49]} Qg5 {[%emt 0:03:19]} 31. Qe3 {[%emt 0:02:17]} Qxe3+ {[%emt 0:02:48]} 32. Rxe3 Rf4 {[%emt 0:01:06]} 33. a4 {[%emt 0:00:21]} Kf7 {[%emt 0:01:06]} 34. b4 {[%emt 0:00:05]} Ke6 {[%emt 0:01:14]} 35. b5 {[%emt 0:00:19]} Kd6 {[%emt 0:01:39]} 36. a5 {[%emt 0:00:08]} Nd2 {[%emt 0:00:37]} 37. Rd3 {[%emt 0:00:52]} Nc4 {[%emt 0:00:14]} 38. a6 {[%emt 0:00:14]} bxa6 {[%emt 0:02:50]} 39. bxa6 {[%emt 0:00:10]} Nb6 {[%emt 0:01:09]} 40. Rg3 {[%emt 0:01:10]} Rf7 {[%emt 0:01:06]} 41. Rg6+ {[%emt 0:00:55]} Kc7 {[%emt 0:01:05]} 42. Kh2 {[%emt 0:01:01]} Rd7 {[%emt 0:01:02]} 43. Bh3 {[%emt 0:00:09]} Re7 {[%emt 0:01:07]} 44. Bg2 {[%emt 0:00:06]} Kd8 {[%emt 0:03:48]} 45. Kg3 {[%emt 0:01:23]} Re3+ {[%emt 0:00:45]} 46. Kf4 {[%emt 0:00:14]} Ra3 {[%emt 0:01:18]} 47. Rxg7 {[%emt 0:00:16]} Rxa6 {[%emt 0:00:12]} 48. Bf3 {[%emt 0:01:58]} Nd7 {[%emt 0:00:41]} 49. Bxd5 {[%emt 0:01:30]} Rd6 {[%emt 0:00:43]} 50. Ke4 {[%emt 0:02:22]} Nf6+ {[%emt 0:00:42]} 51. Ke5 {[%emt 0:00:15]} Rxd5+ {[%emt 0:00:10]} 52. Kxf6 {[%emt 0:00:07]} a5 {[%emt 0:00:40]} 53. Ra7 {[%emt 0:00:47]} h5 {[%emt 0:00:39]} 54. Ke6 {[%emt 0:00:19]} Rxd4 {[%emt 0:00:05]} 55. Rxa5 {[%emt 0:00:06]} h4 {[%emt 0:00:13]} 56. Rh5 {[%emt 0:00:27]} Kc7 {[%emt 0:00:31]} 57. Ke5 {[%emt 0:00:42]} Ra4 {[%emt 0:00:14]} 58. Rh6 {[%emt 0:00:21]} Kd7 {[%emt 0:00:54]} 59. Kf5 {[%emt 0:00:09]} Ke7 {[%emt 0:00:09]} 60. Kg5 {[%emt 0:00:18]} Kf7 {[%emt 0:00:13]} 61. Rxh4 {[%emt 0:00:10]} Rxh4 {[%emt 0:00:03]} 62. Kxh4 1/2-1/2